fUST/lending_fUST_20240409
["ID","MTS","AMOUNT","RATE_DAILY","PERIOD"]
[321937516,1712643049749,-500.0,0.00036438,5]
[321937518,1712643049758,-500.0,0.00036438,5]
[321937520,1712643049767,-500.0,0.00036438,5]
[321937522,1712643049776,-500.0,0.00036438,5]
[321937524,1712643049786,-500.0,0.00036438,5]
[321937526,1712643049795,-582.01,0.00036438,5]
[321937528,1712643049804,-1238.473299,0.00036438,2]
[321937530,1712643049813,-1238.473299,0.00036438,2]
[321937532,1712643049824,-500.0,0.00036438,5]
[321937534,1712643049834,-1238.473299,0.00036438,2]
[321937536,1712643049843,-1238.473299,0.00036438,2]
[321937538,1712643049852,-500.0,0.00036438,5]
[321937540,1712643049863,-151.0,0.00036438,2]
[321937542,1712643049873,-500.0,0.00036438,5]
[321937544,1712643049883,-151.0,0.00036438,2]
[321937546,1712643049893,-1105.12,0.00036438,5]
[321937548,1712643049905,-4622.48,0.00036438,5]
[321937550,1712643049916,-844.44,0.00036438,5]
[321937552,1712643049926,-396.800152,0.00036438,2]
[321937554,1712643049935,-396.800152,0.00036438,2]
[321937556,1712643049944,-151.0,0.00036438,2]
[321937558,1712643049953,-396.800152,0.00036438,2]
[321937560,1712643049962,-396.800152,0.00036438,2]
[321937562,1712643049971,-10254.7,0.00036438,5]
[321937564,1712643049980,-560.72,0.00036438,5]
[321937566,1712643049989,-4316.87,0.00036438,5]
[321937568,1712643049998,-12951.53,0.00036438,5]
[321937570,1712643050007,-2382.84,0.00036438,5]
[321937572,1712643050016,-2733.39,0.00036438,5]
[321937574,1712643050026,-500.0,0.00036438,5]
[321937576,1712643050035,-2488.85,0.00036438,5]
[321937578,1712643050044,-151.0,0.00036438,2]
[321937580,1712643050053,-5488.21,0.00036438,5]
[321937581,1712643050063,-502.00670487,0.00036438,5]
[321937584,1712643050072,-500.0,0.00036438,5]
[321937586,1712643050081,-500.0,0.00036438,5]
[321937588,1712643050090,-500.0,0.00036438,5]
[321937590,1712643050100,-500.0,0.00036438,5]
[321937596,1712643050154,-500.0,0.00036438,5]
[321937598,1712643050166,-3957.16,0.00036438,5]
[321937600,1712643050175,-500.0,0.00036438,5]
[321937602,1712643050185,-2200.3,0.00036438,5]
[321937605,1712643050194,-500.0,0.00036438,5]
[321937607,1712643050203,-1540.41,0.00036438,5]
[321937609,1712643050213,-268.846442,0.00036438,2]
[321937611,1712643050222,-268.846442,0.00036438,2]
[321937612,1712643050231,-1063.57,0.00036438,5]
[321937615,1712643050241,-3327.36,0.00036438,5]
[321937617,1712643050250,-268.846442,0.00036438,2]
[321937619,1712643050259,-268.846442,0.00036438,2]
[321937621,1712643050269,-555.96,0.00036438,5]
[321937623,1712643050278,-1710.21,0.00036438,5]
[321937624,1712643050287,-500.0,0.00036438,5]
[321937627,1712643050297,-151.0,0.00036438,2]
[321937629,1712643050306,-151.0,0.00036438,2]
[321937631,1712643050317,-500.0,0.00036438,5]
[321937633,1712643050326,-500.0,0.00036438,5]
[321937635,1712643050335,-684.37,0.00036438,5]
[321937637,1712643050344,-2202.98,0.00036438,5]
[321937638,1712643050353,-500.0,0.00036438,5]
[321937641,1712643050362,-500.0,0.00036438,5]
[321937643,1712643050373,-6452.86,0.00036438,5]
[321937645,1712643050382,-500.0,0.00036438,5]
[321937647,1712643050391,-505.55796689,0.00036438,5]
[321937649,1712643050401,-3532.75,0.00036438,5]
[321937651,1712643050411,-500.0,0.00036438,5]
[321937653,1712643050420,-500.0,0.00036438,5]
[321937655,1712643050429,-500.0,0.00036438,5]
[321937656,1712643050438,-500.0,0.00036438,5]
[321937658,1712643050447,-3775.95,0.00036438,5]
[321937660,1712643050457,-5228.77,0.00036438,5]
[321937663,1712643050467,-500.0,0.00036438,5]
[321937664,1712643050476,-663.17,0.00036438,5]
[321937666,1712643050485,-500.0,0.00036438,5]
[321937668,1712643050495,-156.94323079,0.00036438,5]
[321937670,1712643050504,-3144.76,0.00036438,5]
[321937673,1712643050522,-912.45,0.00036438,5]
[321937676,1712643050539,-500.0,0.00036438,5]
[321937679,1712643050557,-500.0,0.00036438,5]
[321937682,1712643050576,-151.0,0.00036438,2]
[321937685,1712643050592,-151.0,0.00036438,2]
[321937688,1712643050609,-1342.43,0.00036438,5]
[321937691,1712643050627,-870.9,0.00036438,5]
[321937693,1712643050644,-479.69406447,0.00036438,5]
[321937696,1712643050662,-1343.58,0.00036438,5]
[321937699,1712643050679,-500.0,0.00036438,5]
[321937702,1712643050697,-500.0,0.00036438,5]
[321937705,1712643050717,-500.0,0.00036438,5]
[321937707,1712643050731,-39111.89,0.00036438,5]
[321937709,1712643050746,-500.0,0.00036438,5]
[321937710,1712643050762,-500.0,0.00036438,5]
[321937711,1712643050775,-1090.243863,0.00036438,2]
[321937712,1712643050790,-1090.243863,0.00036438,2]
[321937713,1712643050804,-1336.03,0.00036438,5]
[321937714,1712643050818,-500.0,0.00036438,5]
[321937715,1712643050836,-1090.243863,0.00036438,2]
[321937716,1712643050851,-1090.243863,0.00036438,2]
[321937718,1712643050865,-500.0,0.00036438,5]
[321937720,1712643050879,-500.0,0.00036438,5]
[321937722,1712643050892,-500.0,0.00036438,5]
[321937725,1712643050907,-633.80862203,0.00036438,5]
[321937728,1712643050923,-151.0,0.00036438,2]
[321937730,1712643050937,-2606.94,0.00036438,5]
[321937733,1712643050952,-151.0,0.00036438,2]
[321937735,1712643050967,-500.0,0.00036438,5]
[321937738,1712643050982,-772.08,0.00036438,5]
[321937740,1712643050996,-7492.22,0.00036438,5]
[321937743,1712643051010,-500.0,0.00036438,5]
[321937745,1712643051024,-151.47252526,0.00036438,5]
[321937748,1712643051038,-2644.82,0.00036438,5]
[321937750,1712643051052,-500.0,0.00036438,5]
[321937753,1712643051065,-30050.25,0.00036438,5]
[321937755,1712643051080,-500.0,0.00036438,5]
[321937756,1712643051093,-11722.34,0.00036438,5]
[321937757,1712643051179,-500.0,0.00036438,5]
[321937758,1712643051192,-500.0,0.00036438,5]
[321937759,1712643051202,-1613.54,0.00036438,5]
[321937760,1712643051211,-500.0,0.00036438,5]
[321937761,1712643051220,-910.73,0.00036438,5]
[321937762,1712643051230,-3753.47,0.00036438,5]
[321937763,1712643051239,-500.0,0.00036438,5]
[321937764,1712643051249,-823.47,0.00036438,5]
[321937765,1712643051259,-5496.71,0.00036438,5]
[321937766,1712643051269,-500.0,0.00036438,5]
[321937767,1712643051279,-989.69,0.00036438,5]
[321937768,1712643051289,-1120.25,0.00036438,5]
[321937769,1712643051298,-554.24227929,0.00036438,5]
[321937770,1712643051308,-500.0,0.00036438,5]
[321937771,1712643051322,-500.0,0.00036438,5]
[321937772,1712643051377,-520.58,0.00036438,5]
[321937773,1712643051387,-558.29,0.00036438,5]
[321937774,1712643051397,-651.5818,0.00036438,2]
[321937775,1712643051407,-500.0,0.00036438,5]
[321937776,1712643051417,-651.5818,0.00036438,2]
[321937777,1712643051427,-1107.65,0.00036438,5]
[321937778,1712643051441,-3053.19,0.00036438,5]
[321937779,1712643051451,-165.559223,0.0003653,2]
[321937780,1712643051462,-823.0,0.00036601,2]
[321937781,1712643051471,-157.50619684,0.00036616,3]
[321937782,1712643051482,-620.08955385,0.0003664,2]
[321937783,1712643051491,-785.804,0.00036673,30]
[321937784,1712643051502,-431.40262814,0.0003671,4]
[321937785,1712643051511,-264.36650746,0.0003671,4]
[321937786,1712643051521,-309.87606197,0.0003671,4]
[321937787,1712643051531,-155.0,0.0003671,4]
[321937788,1712643051540,-921.93384086,0.0003671,4]
[321937789,1712643051549,-558.32933043,0.00036711,2]
[321937790,1712643051559,-935.87904205,0.00036711,4]
[321937791,1712643051569,-150.0,0.00036711,2]
[321937792,1712643051580,-500.0,0.00036712,5]
[321937793,1712643051590,-500.0,0.00036712,5]
[321937794,1712643051599,-497.49018339,0.00036712,5]
[321937795,1712643051609,-500.0,0.00036712,5]
[321937796,1712643051618,-228.06084053,0.00036712,5]
[321937797,1712643051628,-500.0,0.00036712,5]
[321937798,1712643051638,-500.0,0.00036712,5]
[321937799,1712643051647,-500.0,0.00036712,5]
[321937800,1712643051656,-255.11779945,0.00036712,5]
[321937801,1712643051666,-500.0,0.00036712,5]
[321937803,1712643051675,-2353.91,0.00036712,5]
[321937805,1712643051684,-534.64235161,0.00036712,5]
[321937806,1712643051693,-500.0,0.00036712,5]
[321937807,1712643051702,-151.0,0.00036712,2]
[321937808,1712643051712,-151.0,0.00036712,2]
[321937809,1712643051721,-1064.91,0.00036712,5]
[321937810,1712643051731,-681.62,0.00036712,5]
[321937811,1712643051741,-2610.12,0.00036712,5]
[321937812,1712643051750,-500.0,0.00036712,5]
[321937814,1712643051760,-859.61,0.00036712,5]
[321937816,1712643051769,-1029.82,0.00036712,5]
[321937818,1712643051778,-547.01453468,0.00036712,5]
[321937820,1712643051787,-151.0,0.00036712,2]
[321937821,1712643051796,-151.0,0.00036712,2]
[321937823,1712643051805,-560.03287746,0.00036712,5]
[321937825,1712643051814,-500.0,0.00036712,5]
[321937827,1712643051827,-500.0,0.00036712,5]
[321937829,1712643051836,-539.21,0.00036712,5]
[321937830,1712643051845,-2627.0,0.00036712,5]
[321937832,1712643051855,-500.0,0.00036712,5]
[321937834,1712643051864,-670.15,0.00036712,5]
[321937836,1712643051874,-500.0,0.00036712,5]
[321937838,1712643051883,-500.0,0.00036712,5]
[321937839,1712643051893,-500.0,0.00036712,5]
[321937840,1712643051902,-500.0,0.00036712,5]
[321937841,1712643051912,-522.97,0.00036712,5]
[321937842,1712643051922,-500.0,0.00036712,5]
[321937843,1712643051931,-786.87,0.00036712,5]
[321937844,1712643051941,-500.0,0.00036712,5]
[321937845,1712643051950,-500.0,0.00036712,5]
[321937846,1712643051959,-500.0,0.00036712,5]
[321937847,1712643051969,-559.04,0.00036712,5]
[321937848,1712643051978,-500.0,0.00036712,5]
[321937849,1712643051988,-210.12327237,0.00036712,5]
[321937850,1712643051998,-500.0,0.00036712,5]
[321937851,1712643052007,-500.0,0.00036712,5]
[321937852,1712643052016,-500.0,0.00036712,5]
[321937853,1712643052026,-500.0,0.00036712,5]
[321937854,1712643052035,-804.68,0.00036712,5]
[321937855,1712643052045,-509.29828213,0.00036712,5]
[321937856,1712643052054,-1169.73,0.00036712,5]
[321937857,1712643052063,-502.82,0.00036712,5]
[321937858,1712643052072,-500.0,0.00036712,5]
[321937859,1712643052082,-500.0,0.00036712,5]
[321937860,1712643052092,-969.13,0.00036712,5]
[321937861,1712643052101,-500.0,0.00036712,5]
[321937862,1712643052111,-500.0,0.00036712,5]
[321937863,1712643052120,-947.68,0.00036712,5]
[321937864,1712643052129,-500.0,0.00036712,5]
[321937865,1712643052139,-981.22,0.00036712,5]
[321937866,1712643052197,-500.0,0.00036712,5]
[321937867,1712643052207,-523.23,0.00036712,5]
[321937868,1712643052216,-500.0,0.00036712,5]
[321937869,1712643052225,-632.68504503,0.00036712,5]
[321937870,1712643052234,-1402.5,0.00036712,5]
[321937871,1712643052243,-500.0,0.00036712,5]
[321937873,1712643052253,-500.0,0.00036712,5]
[321937875,1712643052262,-1539.6,0.00036712,2]
[321937876,1712643052271,-500.0,0.00036712,5]
[321937877,1712643052281,-4034.0,0.00036712,5]
[321937878,1712643052290,-500.0,0.00036712,5]
[321937879,1712643052299,-500.0,0.00036712,5]
[321937881,1712643052307,-2720.65,0.00036712,5]
[321937882,1712643052317,-601.41,0.00036712,5]
[321937884,1712643052326,-500.0,0.00036712,5]
[321937886,1712643052335,-500.0,0.00036712,5]
[321937887,1712643052345,-523.71104946,0.00036712,5]
[321937888,1712643052354,-704.16,0.00036712,5]
[321937889,1712643052363,-785.0,0.00036712,5]
[321937890,1712643052372,-500.0,0.00036712,5]
[321937891,1712643052381,-782.53,0.00036712,5]
[321937892,1712643052391,-500.0,0.00036712,5]
[321937893,1712643052401,-500.0,0.00036712,5]
[321937894,1712643052410,-500.0,0.00036712,5]
[321937896,1712643052421,-500.0,0.00036712,5]
[321937898,1712643052430,-667.02,0.00036712,5]
[321937899,1712643052438,-500.0,0.00036712,5]
[321937900,1712643052448,-855.84,0.00036712,5]
[321937901,1712643052458,-539.80496598,0.00036712,5]
[321937902,1712643052468,-500.0,0.00036712,5]
[321937903,1712643052477,-500.0,0.00036712,5]
[321937904,1712643052486,-500.0,0.00036712,5]
[321937905,1712643052496,-500.0,0.00036712,5]
[321937906,1712643052508,-582.01,0.00036712,5]
[321937907,1712643052517,-1238.473299,0.00036712,2]
[321937909,1712643052526,-500.0,0.00036712,5]
[321937911,1712643052537,-1238.473299,0.00036712,2]
[321937912,1712643052546,-500.0,0.00036712,5]
[321937913,1712643052555,-151.0,0.00036712,2]
[321937914,1712643052565,-151.0,0.00036712,2]
[321937915,1712643052575,-151.0,0.00036712,2]
[321937916,1712643052584,-1105.12,0.00036712,5]
[321937917,1712643052593,-4622.48,0.00036712,5]
[321937918,1712643052602,-844.44,0.00036712,5]
[321937919,1712643052612,-151.0,0.00036712,2]
[321937920,1712643052621,-396.800152,0.00036712,2]
[321937921,1712643052631,-151.0,0.00036712,2]
[321937922,1712643052640,-151.0,0.00036712,2]
[321937923,1712643052650,-396.800152,0.00036712,2]
[321937924,1712643052661,-10254.7,0.00036712,5]
[321937925,1712643052670,-560.72,0.00036712,5]
[321937926,1712643052679,-4316.87,0.00036712,5]
[321937927,1712643052689,-12951.53,0.00036712,5]
[321937928,1712643052698,-2382.84,0.00036712,5]
[321937929,1712643052707,-2733.39,0.00036712,5]
[321937930,1712643052716,-2488.85,0.00036712,5]
[321937931,1712643052725,-151.0,0.00036712,2]
[321937932,1712643052734,-151.0,0.00036712,2]
[321937933,1712643052742,-5488.21,0.00036712,5]
[321937934,1712643052752,-500.0,0.00036712,5]
[321937935,1712643052761,-500.0,0.00036712,5]
[321937936,1712643052770,-502.46545256,0.00036712,5]
[321937937,1712643052779,-500.0,0.00036712,5]
[321937938,1712643052788,-500.0,0.00036712,5]
[321937939,1712643052797,-3957.16,0.00036712,5]
[321937940,1712643052806,-500.0,0.00036712,5]
[321937941,1712643052814,-2200.3,0.00036712,5]
[321937942,1712643052829,-500.0,0.00036712,5]
[321937943,1712643052839,-1540.41,0.00036712,5]
[321937944,1712643052848,-268.846442,0.00036712,2]
[321937945,1712643052857,-1063.57,0.00036712,5]
[321937946,1712643052866,-3327.36,0.00036712,5]
[321937947,1712643052875,-268.846442,0.00036712,2]
[321937948,1712643052884,-1710.21,0.00036712,5]
[321937949,1712643052893,-500.0,0.00036712,5]
[321937950,1712643052904,-151.0,0.00036712,2]
[321937951,1712643052913,-500.0,0.00036712,5]
[321937952,1712643052923,-684.37,0.00036712,5]
[321937953,1712643052931,-2202.98,0.00036712,5]
[321937954,1712643052940,-500.0,0.00036712,5]
[321937955,1712643052949,-500.0,0.00036712,5]
[321937956,1712643052958,-6452.86,0.00036712,5]
[321937957,1712643052967,-500.0,0.00036712,5]
[321937958,1712643052977,-500.0,0.00036712,5]
[321937959,1712643052986,-3532.75,0.00036712,5]
[321937960,1712643052995,-500.0,0.00036712,5]
[321937961,1712643053004,-500.0,0.00036712,5]
[321937962,1712643053013,-500.0,0.00036712,5]
[321937963,1712643053068,-3775.95,0.00036712,5]
[321937964,1712643053081,-5228.77,0.00036712,5]
[321937965,1712643053090,-500.0,0.00036712,5]
[321937966,1712643053100,-663.17,0.00036712,5]
[321937967,1712643053109,-500.0,0.00036712,5]
[321937968,1712643053119,-3144.76,0.00036712,5]
[321937969,1712643053128,-912.45,0.00036712,5]
[321937970,1712643053138,-500.0,0.00036712,5]
[321937971,1712643053147,-500.0,0.00036712,5]
[321937972,1712643053157,-151.0,0.00036712,2]
[321937973,1712643053166,-1342.43,0.00036712,5]
[321937974,1712643053177,-870.9,0.00036712,5]
[321937975,1712643053186,-1343.58,0.00036712,5]
[321937976,1712643053196,-487.95747983,0.00036712,5]
[321937977,1712643053205,-500.0,0.00036712,5]
[321937978,1712643053215,-500.0,0.00036712,5]
[321937979,1712643053225,-39111.89,0.00036712,5]
[321937980,1712643053234,-500.0,0.00036712,5]
[321937981,1712643053243,-500.0,0.00036712,5]
[321937982,1712643053253,-1090.243863,0.00036712,2]
[321937983,1712643053262,-1336.03,0.00036712,5]
[321937984,1712643053272,-500.0,0.00036712,5]
[321937985,1712643053281,-1090.243863,0.00036712,2]
[321937986,1712643053290,-500.0,0.00036712,5]
[321937987,1712643053299,-500.0,0.00036712,5]
[321937988,1712643053309,-500.0,0.00036712,5]
[321937989,1712643053318,-2606.94,0.00036712,5]
[321937990,1712643053329,-151.0,0.00036712,2]
[321937991,1712643053339,-500.0,0.00036712,5]
[321937992,1712643053348,-772.08,0.00036712,5]
[321937993,1712643053358,-500.0,0.00036712,5]
[321937994,1712643053368,-7492.22,0.00036712,5]
[321937995,1712643053378,-2644.82,0.00036712,5]
[321937996,1712643053387,-500.0,0.00036712,5]
[321937997,1712643053397,-500.0,0.00036712,5]
[321937998,1712643053407,-30050.25,0.00036712,5]
[321937999,1712643053417,-11722.34,0.00036712,5]
[321938000,1712643053426,-500.0,0.00036712,5]
[321938001,1712643053436,-500.0,0.00036712,5]
[321938002,1712643053445,-1613.54,0.00036712,5]
[321938003,1712643053455,-503.06914052,0.00036712,5]
[321938004,1712643053465,-910.73,0.00036712,5]
[321938005,1712643053476,-500.0,0.00036712,5]
[321938006,1712643053485,-3753.47,0.00036712,5]
[321938007,1712643053494,-823.47,0.00036712,5]
[321938008,1712643053503,-5496.71,0.00036712,5]
[321938009,1712643053513,-358.82648232,0.00036712,5]
[321938010,1712643053522,-989.69,0.00036712,5]
[321938011,1712643053531,-1120.25,0.00036712,5]
[321938012,1712643053541,-500.0,0.00036712,5]
[321938013,1712643053550,-500.0,0.00036712,5]
[321938014,1712643053560,-520.58,0.00036712,5]
[321938015,1712643053569,-558.29,0.00036712,5]
[321938016,1712643053579,-500.0,0.00036712,5]
[321938017,1712643053589,-651.5818,0.00036712,2]
[321938018,1712643053598,-1107.65,0.00036712,5]
[321938019,1712643053608,-3053.19,0.00036712,5]
[321938020,1712643053618,-1327.05632259,0.00036856,2]
[321938021,1712643053629,-150.0,0.00036889,2]
[321938022,1712643053638,-151.14941225,0.00036889,2]
[321938023,1712643053648,-245.38673713,0.00036889,2]
[321938024,1712643053658,-150.0,0.00036889,2]
[321938025,1712643053668,-150.0,0.000369,2]
[321938026,1712643053677,-585.0,0.000369,2]
[321938027,1712643053686,-150.0,0.00036944,2]
[321938028,1712643053696,-150.5,0.00036956,35]
[321938029,1712643053704,-162.82,0.00036956,35]
[321938030,1712643053713,-150.5,0.00036956,35]
[321938031,1712643053721,-195.84,0.00036956,35]
[321938032,1712643053730,-505.0,0.00036956,35]
[321938033,1712643053739,-8819.0,0.00036956,35]
[321938034,1712643053748,-224.0,0.00036956,35]
[321938035,1712643053757,-150.5,0.00036966,35]
[321938036,1712643053767,-150.5,0.00036966,35]
[321938037,1712643053775,-150.5,0.00036966,35]
[321938038,1712643053784,-150.5,0.00036966,35]
[321938039,1712643053793,-505.0,0.00036966,35]
[321938040,1712643053802,-8819.0,0.00036966,35]
[321938041,1712643053811,-224.0,0.00036966,35]
[321938042,1712643053821,-160.0,0.00036972,3]
[321938043,1712643053832,-150.5,0.00036976,35]
[321938044,1712643053841,-150.5,0.00036976,35]
[321938045,1712643053850,-150.5,0.00036976,35]
[321938046,1712643053859,-150.5,0.00036976,35]
[321938047,1712643053868,-505.0,0.00036976,35]
[321938049,1712643053877,-8819.0,0.00036976,35]
[321938051,1712643053886,-224.0,0.00036976,35]
[321938053,1712643053895,-151.0,0.00036976,2]
[321938055,1712643053906,-1090.243863,0.00036976,2]
[321938057,1712643053914,-1090.243863,0.00036976,2]
[321938059,1712643053923,-184.265808,0.00036976,2]
[321938061,1712643053932,-651.5818,0.00036976,2]
[321938063,1712643053940,-154.98450155,0.00036984,4]
[321938065,1712643053950,-596.08980381,0.00036984,2]
[321938067,1712643053960,-161.14476818,0.00036984,4]
[321938069,1712643053970,-279.64322112,0.00036984,4]
[321938071,1712643053980,-196.73315461,0.00036985,2]
[321938073,1712643053989,-500.0,0.00036986,5]
[321938075,1712643053998,-524.5041092,0.00036986,5]
[321938077,1712643054008,-500.0,0.00036986,5]
[321938079,1712643054017,-500.0,0.00036986,5]
[321938081,1712643054026,-500.0,0.00036986,5]
[321938083,1712643054035,-500.0,0.00036986,5]
[321938085,1712643054044,-500.0,0.00036986,5]
[321938087,1712643054053,-2353.91,0.00036986,5]
[321938089,1712643054062,-500.0,0.00036986,5]
[321938091,1712643054070,-151.0,0.00036986,2]
[321938093,1712643054080,-1064.91,0.00036986,5]
[321938095,1712643054088,-681.62,0.00036986,5]
[321938097,1712643054098,-2610.12,0.00036986,5]
[321938099,1712643054107,-500.0,0.00036986,5]
[321938100,1712643054116,-859.61,0.00036986,5]
[321938102,1712643054126,-1029.82,0.00036986,5]
[321938105,1712643054135,-151.0,0.00036986,2]
[321938106,1712643054144,-500.0,0.00036986,5]
[321938108,1712643054153,-500.0,0.00036986,5]
[321938111,1712643054163,-539.21,0.00036986,5]
[321938113,1712643054172,-2627.0,0.00036986,5]
[321938115,1712643054181,-500.0,0.00036986,5]
[321938116,1712643054190,-670.15,0.00036986,5]
[321938118,1712643054200,-500.0,0.00036986,5]
[321938121,1712643054209,-500.0,0.00036986,5]
[321938122,1712643054218,-500.0,0.00036986,5]
[321938124,1712643054227,-500.0,0.00036986,5]
[321938126,1712643054237,-522.97,0.00036986,5]
[321938128,1712643054246,-405.2160506,0.00036986,5]
[321938130,1712643054254,-786.87,0.00036986,5]
[321938132,1712643054264,-500.0,0.00036986,5]
[321938134,1712643054273,-500.0,0.00036986,5]
[321938136,1712643054284,-500.0,0.00036986,5]
[321938139,1712643054294,-559.04,0.00036986,5]
[321938140,1712643054303,-500.0,0.00036986,5]
[321938142,1712643054313,-500.0,0.00036986,5]
[321938144,1712643054326,-500.0,0.00036986,5]
[321938147,1712643054335,-500.0,0.00036986,5]
[321938149,1712643054345,-418.5999343,0.00036986,5]
[321938151,1712643054355,-804.68,0.00036986,5]
[321938153,1712643054364,-1169.73,0.00036986,5]
[321938155,1712643054373,-502.82,0.00036986,5]
[321938157,1712643054382,-500.0,0.00036986,5]
[321938159,1712643054393,-500.0,0.00036986,5]
[321938161,1712643054402,-969.13,0.00036986,5]
[321938163,1712643054411,-531.38889523,0.00036986,5]
[321938165,1712643054422,-500.0,0.00036986,5]
[321938167,1712643054432,-947.68,0.00036986,5]
[321938169,1712643054441,-500.0,0.00036986,5]
[321938171,1712643054450,-981.22,0.00036986,5]
[321938172,1712643054459,-500.0,0.00036986,5]
[321938174,1712643054468,-523.23,0.00036986,5]
[321938177,1712643054478,-500.0,0.00036986,5]
[321938179,1712643054489,-1402.5,0.00036986,5]
[321938181,1712643054498,-500.0,0.00036986,5]
[321938183,1712643054507,-500.0,0.00036986,5]
[321938184,1712643054516,-1539.6,0.00036986,2]
[321938186,1712643054525,-513.63,0.00036986,5]
[321938188,1712643054534,-4034.0,0.00036986,5]
[321938190,1712643054545,-500.0,0.00036986,5]
[321938192,1712643054554,-500.0,0.00036986,5]
[321938194,1712643054563,-2720.65,0.00036986,5]
[321938196,1712643054572,-601.41,0.00036986,5]
[321938198,1712643054581,-500.0,0.00036986,5]
[321938200,1712643054590,-500.0,0.00036986,5]
[321938202,1712643054599,-704.16,0.00036986,5]
[321938204,1712643054609,-785.0,0.00036986,5]
[321938206,1712643054618,-500.0,0.00036986,5]
[321938208,1712643054627,-782.53,0.00036986,5]
[321938210,1712643054636,-500.0,0.00036986,5]
[321938211,1712643054645,-500.0,0.00036986,5]
[321938213,1712643054655,-500.0,0.00036986,5]
[321938215,1712643054666,-500.0,0.00036986,5]
[321938217,1712643054675,-667.02,0.00036986,5]
[321938219,1712643054684,-500.0,0.00036986,5]
[321938221,1712643054694,-855.84,0.00036986,5]
[321938223,1712643054704,-500.0,0.00036986,5]
[321938225,1712643054713,-500.0,0.00036986,5]
[321938227,1712643054722,-500.0,0.00036986,5]
[321938229,1712643054731,-500.0,0.00036986,5]
[321938231,1712643054741,-582.01,0.00036986,5]
[321938233,1712643054750,-1238.473299,0.00036986,2]
[321938235,1712643054759,-1238.473299,0.00036986,2]
[321938237,1712643054769,-187.83641433,0.00036986,5]
[321938239,1712643054779,-1238.473299,0.00036986,2]
[321938241,1712643054789,-1238.473299,0.00036986,2]
[321938243,1712643054798,-500.0,0.00036986,5]
[321938245,1712643054806,-1105.12,0.00036986,5]
[321938247,1712643054816,-4622.48,0.00036986,5]
[321938249,1712643054830,-844.44,0.00036986,5]
[321938251,1712643054839,-151.0,0.00036986,2]
[321938253,1712643054849,-396.800152,0.00036986,2]
[321938255,1712643054859,-396.800152,0.00036986,2]
[321938257,1712643054871,-151.0,0.00036986,2]
[321938259,1712643054881,-396.800152,0.00036986,2]
[321938261,1712643054890,-396.800152,0.00036986,2]
[321938263,1712643054902,-10254.7,0.00036986,5]
[321938265,1712643054912,-560.72,0.00036986,5]
[321938267,1712643054921,-4316.87,0.00036986,5]
[321938269,1712643054930,-12951.53,0.00036986,5]
[321938271,1712643054939,-2382.84,0.00036986,5]
[321938273,1712643054949,-2733.39,0.00036986,5]
[321938275,1712643054958,-2488.85,0.00036986,5]
[321938277,1712643054967,-151.0,0.00036986,2]
[321938279,1712643054976,-5488.21,0.00036986,5]
[321938281,1712643054986,-500.0,0.00036986,5]